[Event "Titled Tuesday Blitz November 08 Early 2022"]
[White "Galperin, Platon"]
[Black "Zaragatski, Ilja"]
[WhiteFideId "14165414"]
[BlackFideId "4655192"]
[WhiteElo "2435"]
[BlackElo "2460"]
[Result "1-0"]
[Round "07"]
[TimeControl "180+1"]
[Date "2022.11.09"]
[WhiteClock "0:01:32"]
[BlackClock "0:00:02"]

1. b3 {[%clk 0:03:00]}  Nf6 {[%clk 0:02:55]} 2. Bb2 {[%clk 0:03:01]}  e6 {[%clk 0:02:56]} 3. Nf3 {[%clk 0:03:01]}  d5 {[%clk 0:02:56]} 4. e3 {[%clk 0:03:01]}  Be7 {[%clk 0:02:56]} 5. c4 {[%clk 0:03:02]}  O-O {[%clk 0:02:56]} 6. Nc3 {[%clk 0:03:02]}  b6 {[%clk 0:02:55]} 7. Rc1 {[%clk 0:02:58]}  Bb7 {[%clk 0:02:54]} 8. cxd5 {[%clk 0:02:58]}  exd5 {[%clk 0:02:54]} 9. Ne2 {[%clk 0:02:53]}  Nbd7 {[%clk 0:02:48]} 10. Ned4 {[%clk 0:02:53]}  c5 {[%clk 0:02:39]} 11. Nf5 {[%clk 0:02:53]}  d4 {[%clk 0:02:18]} 12. exd4 {[%clk 0:02:49]}  Re8 {[%clk 0:02:18]} 13. Be2 {[%clk 0:02:47]}  cxd4 {[%clk 0:02:09]} 14. Bxd4 {[%clk 0:02:42]}  Bxf3 {[%clk 0:01:59]} 15. gxf3 {[%clk 0:02:41]}  Bc5 {[%clk 0:01:57]} 16. Be3 {[%clk 0:02:39]}  g6 {[%clk 0:01:50]} 17. Rg1 {[%clk 0:02:37]}  Rc8 {[%clk 0:01:40]} 18. Kf1 {[%clk 0:02:34]}  Ba3 {[%clk 0:01:24]} 19. Rxc8 {[%clk 0:02:32]}  Qxc8 {[%clk 0:01:25]} 20. b4 {[%clk 0:02:31]}  Bxb4 {[%clk 0:01:13]} 21. Nh6+ {[%clk 0:02:26]}  Kg7 {[%clk 0:01:12]} 22. Qb3 {[%clk 0:02:27]}  Bd6 {[%clk 0:01:09]} 23. Qxf7+ {[%clk 0:02:25]}  Kh8 {[%clk 0:00:56]} 24. Bb5 {[%clk 0:02:14]}  Rf8 {[%clk 0:00:55]} 25. Qe6 {[%clk 0:02:06]}  Bxh2 {[%clk 0:00:49]} 26. Rh1 {[%clk 0:01:57]}  Qc7 {[%clk 0:00:17]} 27. Bxd7 {[%clk 0:01:34]}  Nxd7 {[%clk 0:00:08]} 28. Ng4 {[%clk 0:01:34]}  Bd6 {[%clk 0:00:06]} 29. Bd4+ {[%clk 0:01:34]}  Ne5 {[%clk 0:00:03]} 30. Nxe5 {[%clk 0:01:33]}  Bxe5 {[%clk 0:00:02]} 31. Bxe5+ {[%clk 0:01:34]}  Rf6 {[%clk 0:00:02]} 32. Bxf6+ {[%clk 0:01:31]}  Qg7 {[%clk 0:00:02]} 33. Qe8# {[%clk 0:01:32]} 1-0


[Site "https://www.chess.com"]

[Event "Titled Tuesday Blitz November 08 Early 2022"]
[White "Garcia Ramos, Daniel"]
[Black "Kaplan, Avi Harrison"]
[WhiteFideId "32010311"]
[BlackFideId "30934559"]
[WhiteElo "2357"]
[BlackElo "1983"]
[Result "1-0"]
[Round "07"]
[TimeControl "180+1"]
[Date "2022.11.09"]
[WhiteClock "0:00:45"]
[BlackClock "0:00:09"]

1. e4 {[%clk 0:03:00]}  c5 {[%clk 0:02:59]} 2. Nf3 {[%clk 0:03:01]}  d6 {[%clk 0:02:58]} 3. d4 {[%clk 0:03:01]}  cxd4 {[%clk 0:02:56]} 4. Nxd4 {[%clk 0:03:02]}  Nf6 {[%clk 0:02:56]} 5. f3 {[%clk 0:03:03]}  e5 {[%clk 0:02:55]} 6. Nb3 {[%clk 0:03:03]}  d5 {[%clk 0:02:52]} 7. Bg5 {[%clk 0:03:03]}  Be6 {[%clk 0:02:52]} 8. exd5 {[%clk 0:03:01]}  Qxd5 {[%clk 0:02:51]} 9. Nc3 {[%clk 0:03:00]}  Bb4 {[%clk 0:02:48]} 10. Bd2 {[%clk 0:03:00]}  Qd7 {[%clk 0:02:38]} 11. Bb5 {[%clk 0:02:57]}  Nc6 {[%clk 0:02:34]} 12. O-O {[%clk 0:02:57]}  O-O {[%clk 0:02:31]} 13. a3 {[%clk 0:02:54]}  Be7 {[%clk 0:02:26]} 14. Be3 {[%clk 0:02:49]}  Qc7 {[%clk 0:02:22]} 15. Qe2 {[%clk 0:02:38]}  a6 {[%clk 0:02:19]} 16. Bd3 {[%clk 0:02:32]}  Rfd8 {[%clk 0:02:16]} 17. Rad1 {[%clk 0:02:25]}  Rac8 {[%clk 0:02:15]} 18. Qf2 {[%clk 0:02:18]}  b5 {[%clk 0:02:10]} 19. Bb6 {[%clk 0:02:11]}  Qb8 {[%clk 0:02:00]} 20. Bxd8 {[%clk 0:02:10]}  Bxd8 {[%clk 0:02:01]} 21. Kh1 {[%clk 0:02:09]}  Bb6 {[%clk 0:02:00]} 22. Qg3 {[%clk 0:02:08]}  Nd4 {[%clk 0:01:57]} 23. Nxd4 {[%clk 0:02:02]}  Bxd4 {[%clk 0:01:55]} 24. Rfe1 {[%clk 0:02:02]}  Nh5 {[%clk 0:01:49]} 25. Qh4 {[%clk 0:01:54]}  Nf4 {[%clk 0:01:38]} 26. Qxh7+ {[%clk 0:01:52]}  Kf8 {[%clk 0:01:32]} 27. Ne4 {[%clk 0:01:51]}  Ke7 {[%clk 0:01:28]} 28. Qxg7 {[%clk 0:01:46]}  Rh8 {[%clk 0:01:28]} 29. Qf6+ {[%clk 0:01:43]}  Kd7 {[%clk 0:01:25]} 30. c3 {[%clk 0:01:39]}  Qg8 {[%clk 0:01:22]} 31. Ng5 {[%clk 0:01:33]}  Nd5 {[%clk 0:01:10]} 32. Nh7 {[%clk 0:01:08]}  Rxh7 {[%clk 0:00:33]} 33. Bxh7 {[%clk 0:01:05]}  Qxh7 {[%clk 0:00:33]} 34. Qg5 {[%clk 0:00:54]}  Bf2 {[%clk 0:00:32]} 35. Rxe5 {[%clk 0:00:50]}  Kc6 {[%clk 0:00:29]} 36. Rexd5 {[%clk 0:00:49]}  Bxd5 {[%clk 0:00:27]} 37. Qxd5+ {[%clk 0:00:49]}  Kb6 {[%clk 0:00:24]} 38. Qd8+ {[%clk 0:00:47]}  Kc6 {[%clk 0:00:13]} 39. Rd6+ {[%clk 0:00:45]}  Kb7 {[%clk 0:00:12]} 40. Qe7+ {[%clk 0:00:45]}  Ka8 {[%clk 0:00:09]} 41. Rd8# {[%clk 0:00:45]} 1-0


[Site "https://www.chess.com"]

[Event "Titled Tuesday Blitz November 08 Early 2022"]
[White "Gracia Alvarez, Gerardo Antonio"]
[Black "Lakshmi C"]
[WhiteFideId "5109124"]
[BlackFideId "25035347"]
[WhiteElo "2139"]
[BlackElo "1865"]
[Result "0-1"]
[Round "07"]
[TimeControl "180+1"]
[Date "2022.11.09"]
[WhiteClock "0:00:42"]
[BlackClock "0:00:54"]

1. d4 {[%clk 0:03:00]}  Nf6 {[%clk 0:02:46]} 2. Bf4 {[%clk 0:03:00]}  g6 {[%clk 0:02:43]} 3. Nf3 {[%clk 0:02:59]}  Bg7 {[%clk 0:02:41]} 4. c3 {[%clk 0:02:59]}  O-O {[%clk 0:02:40]} 5. Nbd2 {[%clk 0:02:59]}  d6 {[%clk 0:02:37]} 6. e4 {[%clk 0:02:58]}  c5 {[%clk 0:02:37]} 7. dxc5 {[%clk 0:02:57]}  dxc5 {[%clk 0:02:37]} 8. h3 {[%clk 0:02:57]}  Nc6 {[%clk 0:02:36]} 9. Be2 {[%clk 0:02:56]}  Nd7 {[%clk 0:02:30]} 10. O-O {[%clk 0:02:53]}  e5 {[%clk 0:02:30]} 11. Be3 {[%clk 0:02:52]}  Qe7 {[%clk 0:02:28]} 12. Nc4 {[%clk 0:02:47]}  Rd8 {[%clk 0:02:21]} 13. Qd6 {[%clk 0:02:30]}  f6 {[%clk 0:01:59]} 14. Rfd1 {[%clk 0:02:24]}  Bf8 {[%clk 0:01:58]} 15. Qxe7 {[%clk 0:02:18]}  Bxe7 {[%clk 0:01:58]} 16. Nd6 {[%clk 0:02:14]}  Nb6 {[%clk 0:01:56]} 17. Bxc5 {[%clk 0:02:09]}  Be6 {[%clk 0:01:51]} 18. Nxb7 {[%clk 0:02:04]}  Rdb8 {[%clk 0:01:46]} 19. Bxe7 {[%clk 0:02:03]}  Nxe7 {[%clk 0:01:45]} 20. Nc5 {[%clk 0:02:00]}  Bf7 {[%clk 0:01:42]} 21. b3 {[%clk 0:01:43]}  Rc8 {[%clk 0:01:39]} 22. b4 {[%clk 0:01:44]}  a5 {[%clk 0:01:36]} 23. a3 {[%clk 0:01:44]}  Ra7 {[%clk 0:01:19]} 24. g4 {[%clk 0:01:40]}  Nc6 {[%clk 0:01:07]} 25. Ba6 {[%clk 0:01:12]}  Rcc7 {[%clk 0:01:06]} 26. Bb5 {[%clk 0:01:08]}  Nc4 {[%clk 0:00:56]} 27. Bxc4 {[%clk 0:00:51]}  Bxc4 {[%clk 0:00:55]} 28. Rab1 {[%clk 0:00:48]}  Be2 {[%clk 0:00:54]} 29. Rd8+ {[%clk 0:00:42]}  Nxd8 {[%clk 0:00:54]} 0-1


[Site "https://www.chess.com"]

[Event "Titled Tuesday Blitz November 08 Early 2022"]
[White "Gronnestad, Anita"]
[Black "Sreyas Payyappat"]
[WhiteFideId "1502972"]
[BlackFideId "46674969"]
[WhiteElo "1939"]
[BlackElo "2083"]
[Result "0-1"]
[Round "07"]
[TimeControl "180+1"]
[Date "2022.11.09"]
[WhiteClock "0:00:54"]
[BlackClock "0:01:18"]

1. d4 {[%clk 0:02:57]}  Nf6 {[%clk 0:02:59]} 2. c4 {[%clk 0:02:57]}  c5 {[%clk 0:02:59]} 3. d5 {[%clk 0:02:57]}  e6 {[%clk 0:02:59]} 4. Nc3 {[%clk 0:02:57]}  exd5 {[%clk 0:03:00]} 5. cxd5 {[%clk 0:02:58]}  d6 {[%clk 0:03:01]} 6. e4 {[%clk 0:02:58]}  g6 {[%clk 0:03:01]} 7. f4 {[%clk 0:02:58]}  Bg7 {[%clk 0:03:00]} 8. Bb5+ {[%clk 0:02:58]}  Nfd7 {[%clk 0:03:00]} 9. Nf3 {[%clk 0:02:57]}  O-O {[%clk 0:02:58]} 10. a4 {[%clk 0:02:56]}  Na6 {[%clk 0:02:55]} 11. O-O {[%clk 0:02:55]}  Nb4 {[%clk 0:02:55]} 12. Be3 {[%clk 0:02:54]}  a6 {[%clk 0:02:52]} 13. Be2 {[%clk 0:02:54]}  f5 {[%clk 0:02:51]} 14. e5 {[%clk 0:02:51]}  Re8 {[%clk 0:02:42]} 15. e6 {[%clk 0:02:46]}  Nf6 {[%clk 0:02:42]} 16. Ng5 {[%clk 0:02:41]}  Qe7 {[%clk 0:02:27]} 17. Bxc5 {[%clk 0:02:34]}  Nbxd5 {[%clk 0:02:15]} 18. Ba3 {[%clk 0:02:14]}  h6 {[%clk 0:01:42]} 19. Nxd5 {[%clk 0:02:06]}  Nxd5 {[%clk 0:01:41]} 20. Qxd5 {[%clk 0:02:05]}  hxg5 {[%clk 0:01:41]} 21. Bxd6 {[%clk 0:01:54]}  Qxe6 {[%clk 0:01:39]} 22. Qxe6+ {[%clk 0:01:50]}  Bxe6 {[%clk 0:01:36]} 23. fxg5 {[%clk 0:01:45]}  Bxb2 {[%clk 0:01:31]} 24. Rab1 {[%clk 0:01:41]}  Bd4+ {[%clk 0:01:30]} 25. Kh1 {[%clk 0:01:41]}  Rad8 {[%clk 0:01:29]} 26. Bc7 {[%clk 0:01:38]}  Rd7 {[%clk 0:01:29]} 27. Rxb7 {[%clk 0:01:28]}  Bd5 {[%clk 0:01:26]} 28. Rb4 {[%clk 0:01:15]}  Rxe2 {[%clk 0:01:22]} 29. Rb8+ {[%clk 0:00:58]}  Kh7 {[%clk 0:01:19]} 30. Rg1 {[%clk 0:00:55]}  Bxg2+ {[%clk 0:01:18]} 31. Rxg2 {[%clk 0:00:54]}  Re1+ {[%clk 0:01:18]} 0-1


[Site "https://www.chess.com"]

[Event "Titled Tuesday Blitz November 08 Early 2022"]
[White "Grot, Blazej"]
[Black "Lehtosaari, Mauri"]
[WhiteFideId "21835845"]
[BlackFideId "501999"]
[WhiteElo "1822"]
[BlackElo "2507"]
[Result "1/2-1/2"]
[Round "07"]
[TimeControl "180+1"]
[Date "2022.11.09"]
[WhiteClock "0:01:08"]
[BlackClock "0:00:31"]

1. e4 {[%clk 0:03:00]}  d5 {[%clk 0:02:56]} 2. exd5 {[%clk 0:02:56]}  Qxd5 {[%clk 0:02:57]} 3. Nc3 {[%clk 0:02:56]}  Qe5+ {[%clk 0:02:56]} 4. Be2 {[%clk 0:02:54]}  c6 {[%clk 0:02:56]} 5. Nf3 {[%clk 0:02:54]}  Qc7 {[%clk 0:02:56]} 6. d3 {[%clk 0:02:53]}  Bf5 {[%clk 0:02:55]} 7. Be3 {[%clk 0:02:53]}  e6 {[%clk 0:02:54]} 8. h3 {[%clk 0:02:53]}  Nf6 {[%clk 0:02:54]} 9. O-O {[%clk 0:02:53]}  Nbd7 {[%clk 0:02:50]} 10. Qd2 {[%clk 0:02:49]}  Bd6 {[%clk 0:02:48]} 11. Rad1 {[%clk 0:02:47]}  O-O {[%clk 0:02:47]} 12. Nh4 {[%clk 0:02:41]}  Bg6 {[%clk 0:02:47]} 13. Nxg6 {[%clk 0:02:40]}  hxg6 {[%clk 0:02:48]} 14. Bf3 {[%clk 0:02:40]}  Rfe8 {[%clk 0:02:40]} 15. g3 {[%clk 0:02:35]}  Rad8 {[%clk 0:02:35]} 16. Bg2 {[%clk 0:02:35]}  Qa5 {[%clk 0:02:27]} 17. a3 {[%clk 0:02:30]}  a6 {[%clk 0:01:59]} 18. Rfe1 {[%clk 0:02:16]}  Qc7 {[%clk 0:01:45]} 19. Qe2 {[%clk 0:02:12]}  Nd5 {[%clk 0:01:44]} 20. Nxd5 {[%clk 0:02:09]}  exd5 {[%clk 0:01:41]} 21. Qd2 {[%clk 0:02:03]}  Nf6 {[%clk 0:01:32]} 22. Bg5 {[%clk 0:02:01]}  Qb6 {[%clk 0:01:25]} 23. c3 {[%clk 0:01:53]}  Qa5 {[%clk 0:01:02]} 24. d4 {[%clk 0:01:46]}  Qc7 {[%clk 0:00:58]} 25. Bxf6 {[%clk 0:01:39]}  gxf6 {[%clk 0:00:57]} 26. Rxe8+ {[%clk 0:01:40]}  Rxe8 {[%clk 0:00:56]} 27. Re1 {[%clk 0:01:40]}  Rxe1+ {[%clk 0:00:54]} 28. Qxe1 {[%clk 0:01:41]}  Kg7 {[%clk 0:00:54]} 29. h4 {[%clk 0:01:39]}  Kf8 {[%clk 0:00:47]} 30. Qe3 {[%clk 0:01:35]}  Kg7 {[%clk 0:00:46]} 31. Bf3 {[%clk 0:01:27]}  Qe7 {[%clk 0:00:42]} 32. Qxe7 {[%clk 0:01:25]}  Bxe7 {[%clk 0:00:43]} 33. Kg2 {[%clk 0:01:24]}  f5 {[%clk 0:00:38]} 34. Be2 {[%clk 0:01:23]}  Kf6 {[%clk 0:00:38]} 35. Bd3 {[%clk 0:01:23]}  Bd6 {[%clk 0:00:38]} 36. f4 {[%clk 0:01:23]}  Bc7 {[%clk 0:00:38]} 37. Kf3 {[%clk 0:01:22]}  Bd6 {[%clk 0:00:37]} 38. Ke3 {[%clk 0:01:16]}  Bc7 {[%clk 0:00:35]} 39. Kf3 {[%clk 0:01:15]}  Ke7 {[%clk 0:00:34]} 40. Ke3 {[%clk 0:01:15]}  Kd6 {[%clk 0:00:34]} 41. Kd2 {[%clk 0:01:09]}  Ke7 {[%clk 0:00:30]} 42. Ke3 {[%clk 0:01:08]}  Kf6 {[%clk 0:00:31]} 43. Kf3 {[%clk 0:01:08]} 1/2-1/2


[Site "https://www.chess.com"]

[Event "Titled Tuesday Blitz November 08 Early 2022"]
[White "Hajiyev, Kanan"]
[Black "Ostrovskiy, Aleksandr"]
[WhiteFideId "13404148"]
[BlackFideId "2034239"]
[WhiteElo "2118"]
[BlackElo "2340"]
[Result "0-1"]
[Round "07"]
[TimeControl "180+1"]
[Date "2022.11.09"]
[WhiteClock "0:00:04"]
[BlackClock "0:00:04"]

1. d4 {[%clk 0:02:56]}  Nf6 {[%clk 0:02:59]} 2. Nf3 {[%clk 0:02:55]}  c5 {[%clk 0:02:58]} 3. c3 {[%clk 0:02:55]}  d5 {[%clk 0:02:54]} 4. Bf4 {[%clk 0:02:54]}  Nc6 {[%clk 0:02:54]} 5. e3 {[%clk 0:02:54]}  Qb6 {[%clk 0:02:53]} 6. Qb3 {[%clk 0:02:54]}  c4 {[%clk 0:02:53]} 7. Qc2 {[%clk 0:02:52]}  Bf5 {[%clk 0:02:53]} 8. Qc1 {[%clk 0:02:53]}  Qb5 {[%clk 0:02:52]} 9. b3 {[%clk 0:02:35]}  Na5 {[%clk 0:02:39]} 10. Nbd2 {[%clk 0:02:27]}  Rc8 {[%clk 0:02:37]} 11. Ne5 {[%clk 0:02:06]}  e6 {[%clk 0:02:29]} 12. Be2 {[%clk 0:01:54]}  Nd7 {[%clk 0:02:17]} 13. Nxd7 {[%clk 0:01:47]}  Qxd7 {[%clk 0:02:16]} 14. bxc4 {[%clk 0:01:46]}  Nxc4 {[%clk 0:02:13]} 15. Nxc4 {[%clk 0:01:19]}  dxc4 {[%clk 0:02:14]} 16. a4 {[%clk 0:01:19]}  Be7 {[%clk 0:02:07]} 17. Qb2 {[%clk 0:01:17]}  Be4 {[%clk 0:01:59]} 18. f3 {[%clk 0:01:14]}  Bc6 {[%clk 0:01:54]} 19. O-O {[%clk 0:01:03]}  Bxa4 {[%clk 0:01:43]} 20. Rfb1 {[%clk 0:00:58]}  b5 {[%clk 0:01:40]} 21. Qa2 {[%clk 0:00:45]}  O-O {[%clk 0:01:34]} 22. e4 {[%clk 0:00:45]}  a5 {[%clk 0:01:28]} 23. Qb2 {[%clk 0:00:33]}  f5 {[%clk 0:01:26]} 24. Be5 {[%clk 0:00:32]}  Qc6 {[%clk 0:01:20]} 25. exf5 {[%clk 0:00:28]}  Rxf5 {[%clk 0:01:19]} 26. Qa2 {[%clk 0:00:16]}  h6 {[%clk 0:01:14]} 27. f4 {[%clk 0:00:16]}  Bd6 {[%clk 0:01:00]} 28. Bf3 {[%clk 0:00:16]}  Qd7 {[%clk 0:00:58]} 29. Qe2 {[%clk 0:00:14]}  Bxe5 {[%clk 0:00:48]} 30. fxe5 {[%clk 0:00:15]}  b4 {[%clk 0:00:44]} 31. Bg4 {[%clk 0:00:13]}  Rg5 {[%clk 0:00:24]} 32. Rxa4 {[%clk 0:00:10]}  bxc3 {[%clk 0:00:11]} 33. Rxa5 {[%clk 0:00:07]}  Qxd4+ {[%clk 0:00:11]} 34. Kh1 {[%clk 0:00:04]}  Rxg4 {[%clk 0:00:10]} 35. Rd1 {[%clk 0:00:03]}  Qe4 {[%clk 0:00:08]} 36. Qf1 {[%clk 0:00:02]}  Rf8 {[%clk 0:00:08]} 37. Qg1 {[%clk 0:00:01]}  c2 {[%clk 0:00:08]} 38. Re1 {[%clk 0:00:02]}  Qf5 {[%clk 0:00:06]} 39. Raa1 {[%clk 0:00:03]}  Rf4 {[%clk 0:00:06]} 40. Rac1 {[%clk 0:00:04]}  Rf2 {[%clk 0:00:07]} 41. h3 {[%clk 0:00:04]}  Qd3 {[%clk 0:00:06]} 42. Qh2 {[%clk 0:00:04]}  Re2 {[%clk 0:00:06]} 43. Rg1 {[%clk 0:00:03]}  c3 {[%clk 0:00:06]} 44. h4 {[%clk 0:00:03]}  Qe4 {[%clk 0:00:05]} 45. Rgf1 {[%clk 0:00:03]}  Rxf1+ {[%clk 0:00:05]} 46. Rxf1 {[%clk 0:00:03]}  Re1 {[%clk 0:00:06]} 47. Qg1 {[%clk 0:00:03]}  c1=Q {[%clk 0:00:05]} 48. Rxe1 {[%clk 0:00:03]}  Qexe1 {[%clk 0:00:05]} 49. Kh2 {[%clk 0:00:04]}  Qxh4# {[%clk 0:00:04]} 0-1


[Site "https://www.chess.com"]

[Event "Titled Tuesday Blitz November 08 Early 2022"]
[White "Hasangatin, Ramil"]
[Black "Orzech, Dominik"]
[WhiteFideId "4122160"]
[BlackFideId "1115065"]
[WhiteElo "2362"]
[BlackElo "2272"]
[Result "1-0"]
[Round "07"]
[TimeControl "180+1"]
[Date "2022.11.09"]
[WhiteClock "0:01:21"]
[BlackClock "0:00:19"]

1. e4 {[%clk 0:02:55]}  c6 {[%clk 0:02:48]} 2. Nf3 {[%clk 0:02:55]}  d5 {[%clk 0:02:49]} 3. d3 {[%clk 0:02:55]}  Bg4 {[%clk 0:02:48]} 4. h3 {[%clk 0:02:54]}  Bxf3 {[%clk 0:02:48]} 5. Qxf3 {[%clk 0:02:55]}  e6 {[%clk 0:02:48]} 6. g3 {[%clk 0:02:53]}  Nd7 {[%clk 0:02:49]} 7. Bg2 {[%clk 0:02:53]}  Ngf6 {[%clk 0:02:49]} 8. O-O {[%clk 0:02:54]}  g6 {[%clk 0:02:48]} 9. exd5 {[%clk 0:02:54]}  cxd5 {[%clk 0:02:47]} 10. c4 {[%clk 0:02:54]}  Bg7 {[%clk 0:02:46]} 11. Nc3 {[%clk 0:02:54]}  Ne5 {[%clk 0:02:39]} 12. Qe2 {[%clk 0:02:52]}  Nc6 {[%clk 0:02:28]} 13. cxd5 {[%clk 0:02:50]}  Nd4 {[%clk 0:02:27]} 14. Qe5 {[%clk 0:02:43]}  Nh5 {[%clk 0:02:18]} 15. Qe4 {[%clk 0:02:39]}  f5 {[%clk 0:02:15]} 16. Qe3 {[%clk 0:02:37]}  O-O {[%clk 0:02:09]} 17. dxe6 {[%clk 0:02:35]}  Re8 {[%clk 0:02:05]} 18. Bxb7 {[%clk 0:02:25]}  Nc2 {[%clk 0:02:02]} 19. Qf3 {[%clk 0:02:22]}  Nxa1 {[%clk 0:01:59]} 20. e7 {[%clk 0:02:20]}  Qb8 {[%clk 0:01:55]} 21. Qd5+ {[%clk 0:02:19]}  Kh8 {[%clk 0:01:53]} 22. Bxa8 {[%clk 0:02:19]}  Qxa8 {[%clk 0:01:52]} 23. Qxa8 {[%clk 0:02:13]}  Rxa8 {[%clk 0:01:53]} 24. Nd5 {[%clk 0:02:10]}  Nf6 {[%clk 0:01:51]} 25. Nc7 {[%clk 0:01:59]}  Rc8 {[%clk 0:01:46]} 26. Bg5 {[%clk 0:01:58]}  Ne8 {[%clk 0:01:08]} 27. Nxe8 {[%clk 0:01:57]}  Rxe8 {[%clk 0:01:09]} 28. Rxa1 {[%clk 0:01:57]}  h6 {[%clk 0:01:08]} 29. Be3 {[%clk 0:01:54]}  Rxe7 {[%clk 0:01:07]} 30. d4 {[%clk 0:01:50]}  Rc7 {[%clk 0:00:59]} 31. d5 {[%clk 0:01:48]}  Bxb2 {[%clk 0:00:52]} 32. d6 {[%clk 0:01:48]}  Rd7 {[%clk 0:00:50]} 33. Rd1 {[%clk 0:01:47]}  Be5 {[%clk 0:00:49]} 34. Bxh6 {[%clk 0:01:46]}  Rxd6 {[%clk 0:00:47]} 35. Rxd6 {[%clk 0:01:45]}  Bxd6 {[%clk 0:00:48]} 36. Be3 {[%clk 0:01:44]}  a6 {[%clk 0:00:47]} 37. Kf1 {[%clk 0:01:44]}  Kg7 {[%clk 0:00:47]} 38. Ke2 {[%clk 0:01:44]}  Kf6 {[%clk 0:00:45]} 39. Kd3 {[%clk 0:01:45]}  Ke6 {[%clk 0:00:44]} 40. Kc4 {[%clk 0:01:45]}  Be7 {[%clk 0:00:42]} 41. Bc5 {[%clk 0:01:44]}  Bd8 {[%clk 0:00:42]} 42. Bd4 {[%clk 0:01:39]}  g5 {[%clk 0:00:41]} 43. Be3 {[%clk 0:01:37]}  Ke5 {[%clk 0:00:40]} 44. f3 {[%clk 0:01:33]}  Kd6 {[%clk 0:00:37]} 45. Bc5+ {[%clk 0:01:31]}  Ke5 {[%clk 0:00:35]} 46. Bd4+ {[%clk 0:01:28]}  Kd6 {[%clk 0:00:34]} 47. f4 {[%clk 0:01:23]}  gxf4 {[%clk 0:00:30]} 48. gxf4 {[%clk 0:01:24]}  Kc6 {[%clk 0:00:30]} 49. Bf2 {[%clk 0:01:22]}  Bc7 {[%clk 0:00:27]} 50. Bg3 {[%clk 0:01:22]}  Bd6 {[%clk 0:00:25]} 51. h4 {[%clk 0:01:22]}  Bc7 {[%clk 0:00:23]} 52. h5 {[%clk 0:01:23]}  Bd8 {[%clk 0:00:22]} 53. h6 {[%clk 0:01:22]}  Bf6 {[%clk 0:00:22]} 54. h7 {[%clk 0:01:21]}  Kd6 {[%clk 0:00:20]} 55. Bf2 {[%clk 0:01:21]}  Ke6 {[%clk 0:00:19]} 56. Bd4 {[%clk 0:01:21]} 1-0


[Site "https://www.chess.com"]

[Event "Titled Tuesday Blitz November 08 Early 2022"]
[White "Jean Louis, Marckens"]
[Black "Orozbaev, Eldiar"]
[WhiteFideId "11900270"]
[BlackFideId "13802240"]
[WhiteElo "2030"]
[BlackElo "2244"]
[Result "0-1"]
[Round "07"]
[TimeControl "180+1"]
[Date "2022.11.09"]
[WhiteClock "0:01:56"]
[BlackClock "0:01:50"]

1. d4 {[%clk 0:03:00]}  Nf6 {[%clk 0:02:54]} 2. Nf3 {[%clk 0:03:00]}  c5 {[%clk 0:02:54]} 3. g3 {[%clk 0:03:00]}  cxd4 {[%clk 0:02:54]} 4. Nxd4 {[%clk 0:02:59]}  e5 {[%clk 0:02:54]} 5. Nf3 {[%clk 0:02:59]}  Nc6 {[%clk 0:02:52]} 6. Bg2 {[%clk 0:02:59]}  d5 {[%clk 0:02:52]} 7. O-O {[%clk 0:02:59]}  e4 {[%clk 0:02:53]} 8. Nd4 {[%clk 0:02:58]}  Bc5 {[%clk 0:02:54]} 9. Nxc6 {[%clk 0:02:57]}  bxc6 {[%clk 0:02:54]} 10. c4 {[%clk 0:02:52]}  O-O {[%clk 0:02:53]} 11. Nc3 {[%clk 0:02:51]}  Bb4 {[%clk 0:02:35]} 12. Bg5 {[%clk 0:02:49]}  Bxc3 {[%clk 0:02:34]} 13. bxc3 {[%clk 0:02:50]}  Be6 {[%clk 0:02:35]} 14. cxd5 {[%clk 0:02:49]}  cxd5 {[%clk 0:02:36]} 15. Qd4 {[%clk 0:02:46]}  Rc8 {[%clk 0:02:32]} 16. Rfd1 {[%clk 0:02:39]}  Qe7 {[%clk 0:02:21]} 17. e3 {[%clk 0:02:32]}  h6 {[%clk 0:02:14]} 18. Bxf6 {[%clk 0:02:31]}  Qxf6 {[%clk 0:02:15]} 19. Qxa7 {[%clk 0:02:30]}  Rxc3 {[%clk 0:02:13]} 20. a3 {[%clk 0:02:22]}  Rc2 {[%clk 0:02:08]} 21. Rf1 {[%clk 0:02:21]}  Rxf2 {[%clk 0:02:06]} 22. Rxf2 {[%clk 0:02:19]}  Qxa1+ {[%clk 0:02:06]} 23. Rf1 {[%clk 0:02:20]}  Qc3 {[%clk 0:02:07]} 24. a4 {[%clk 0:02:19]}  Qc6 {[%clk 0:01:57]} 25. Rb1 {[%clk 0:02:11]}  Kh7 {[%clk 0:01:53]} 26. a5 {[%clk 0:02:05]}  Ra8 {[%clk 0:01:51]} 27. Qb6 {[%clk 0:02:05]}  Qa4 {[%clk 0:01:51]} 28. Rb5 {[%clk 0:01:59]}  Qd1+ {[%clk 0:01:49]} 29. Kf2 {[%clk 0:01:56]}  Qd2+ {[%clk 0:01:49]} 30. Kg1 {[%clk 0:01:56]}  Qe1+ {[%clk 0:01:50]} 0-1


[Site "https://www.chess.com"]